[Event "Titled Tuesday Blitz November 29 Late 2022"]
[White "Adury, Anant"]
[Black "Dzierzak, Radoslaw"]
[WhiteFideId "30964687"]
[BlackFideId "1161407"]
[WhiteElo "2166"]
[BlackElo "2111"]
[Result "0-1"]
[Round "02"]
[TimeControl "180+1"]
[Date "2022.11.30"]
[WhiteClock "0:02:07"]
[BlackClock "0:00:37"]

1. Nf3 {[%clk 0:03:00]}  Nf6 {[%clk 0:02:52]} 2. g3 {[%clk 0:03:01]}  d5 {[%clk 0:02:51]} 3. Bg2 {[%clk 0:03:02]}  e6 {[%clk 0:02:51]} 4. O-O {[%clk 0:03:03]}  c5 {[%clk 0:02:51]} 5. d3 {[%clk 0:03:04]}  Nc6 {[%clk 0:02:51]} 6. Nbd2 {[%clk 0:03:05]}  Be7 {[%clk 0:02:48]} 7. e4 {[%clk 0:03:05]}  dxe4 {[%clk 0:02:49]} 8. Nxe4 {[%clk 0:03:05]}  O-O {[%clk 0:02:42]} 9. Be3 {[%clk 0:03:03]}  Nd4 {[%clk 0:02:33]} 10. Nxf6+ {[%clk 0:03:00]}  Bxf6 {[%clk 0:02:32]} 11. c3 {[%clk 0:03:01]}  Nxf3+ {[%clk 0:02:29]} 12. Bxf3 {[%clk 0:03:02]}  Qc7 {[%clk 0:02:23]} 13. Kg2 {[%clk 0:02:58]}  Bd7 {[%clk 0:02:23]} 14. h4 {[%clk 0:02:57]}  Bc6 {[%clk 0:02:07]} 15. Bxc6 {[%clk 0:02:57]}  Qxc6+ {[%clk 0:02:07]} 16. Qf3 {[%clk 0:02:58]}  Qxf3+ {[%clk 0:01:52]} 17. Kxf3 {[%clk 0:02:58]}  Rfd8 {[%clk 0:01:49]} 18. Bxc5 {[%clk 0:02:53]}  Rxd3+ {[%clk 0:01:48]} 19. Ke2 {[%clk 0:02:53]}  Rd5 {[%clk 0:01:41]} 20. Be3 {[%clk 0:02:53]}  a6 {[%clk 0:01:35]} 21. Rad1 {[%clk 0:02:52]}  Rad8 {[%clk 0:01:34]} 22. Rxd5 {[%clk 0:02:52]}  Rxd5 {[%clk 0:01:35]} 23. Rd1 {[%clk 0:02:52]}  Rxd1 {[%clk 0:01:30]} 24. Kxd1 {[%clk 0:02:52]}  h5 {[%clk 0:01:30]} 25. Kc2 {[%clk 0:02:52]}  g6 {[%clk 0:01:28]} 26. Kd3 {[%clk 0:02:34]}  Kf8 {[%clk 0:01:27]} 27. Kc4 {[%clk 0:02:34]}  Ke8 {[%clk 0:01:24]} 28. Kc5 {[%clk 0:02:33]}  Kd7 {[%clk 0:01:24]} 29. Kb6 {[%clk 0:02:31]}  Kc8 {[%clk 0:01:24]} 30. Bd4 {[%clk 0:02:25]}  Bd8+ {[%clk 0:01:23]} 31. Kc5 {[%clk 0:02:25]}  Kc7 {[%clk 0:01:17]} 32. a4 {[%clk 0:02:21]}  Be7+ {[%clk 0:01:13]} 33. Kc4 {[%clk 0:02:22]}  Kc6 {[%clk 0:01:12]} 34. b4 {[%clk 0:02:22]}  b5+ {[%clk 0:01:12]} 35. axb5+ {[%clk 0:02:23]}  axb5+ {[%clk 0:01:12]} 36. Kd3 {[%clk 0:02:22]}  Kd5 {[%clk 0:01:12]} 37. f4 {[%clk 0:02:21]}  f6 {[%clk 0:00:51]} 38. Be3 {[%clk 0:02:08]}  e5 {[%clk 0:00:50]} 39. fxe5 {[%clk 0:02:09]}  fxe5 {[%clk 0:00:50]} 40. Ke2 {[%clk 0:02:06]}  Kc4 {[%clk 0:00:43]} 41. Bd2 {[%clk 0:02:06]}  e4 {[%clk 0:00:37]} 42. Ke3 {[%clk 0:02:06]}  Bf6 {[%clk 0:00:37]} 43. Kxe4 {[%clk 0:02:07]}  Bxc3 {[%clk 0:00:37]} 0-1


[Site "https://www.chess.com"]

[Event "Titled Tuesday Blitz November 29 Late 2022"]
[White "Aggelis, Nikolaos"]
[Black "Young, Ryan"]
[WhiteFideId "4213220"]
[BlackFideId "2049945"]
[WhiteElo "2189"]
[BlackElo "2302"]
[Result "1/2-1/2"]
[Round "02"]
[TimeControl "180+1"]
[Date "2022.11.30"]
[WhiteClock "0:00:07"]
[BlackClock "0:00:59"]

1. d4 {[%clk 0:03:00]}  Nf6 {[%clk 0:02:59]} 2. Nf3 {[%clk 0:02:55]}  e6 {[%clk 0:02:58]} 3. c4 {[%clk 0:02:39]}  Bb4+ {[%clk 0:02:56]} 4. Nbd2 {[%clk 0:02:37]}  O-O {[%clk 0:02:52]} 5. Qb3 {[%clk 0:02:33]}  Bxd2+ {[%clk 0:02:46]} 6. Bxd2 {[%clk 0:02:32]}  d6 {[%clk 0:02:47]} 7. e3 {[%clk 0:02:29]}  Nbd7 {[%clk 0:02:46]} 8. Bd3 {[%clk 0:02:26]}  e5 {[%clk 0:02:44]} 9. dxe5 {[%clk 0:02:25]}  dxe5 {[%clk 0:02:45]} 10. Qc2 {[%clk 0:02:21]}  Qe7 {[%clk 0:02:44]} 11. Be2 {[%clk 0:02:15]}  b6 {[%clk 0:02:35]} 12. O-O {[%clk 0:02:11]}  Bb7 {[%clk 0:02:35]} 13. Rfd1 {[%clk 0:01:49]}  Rfd8 {[%clk 0:02:32]} 14. Bc3 {[%clk 0:01:44]}  Ne4 {[%clk 0:02:22]} 15. Be1 {[%clk 0:01:36]}  c5 {[%clk 0:02:10]} 16. a3 {[%clk 0:01:32]}  Ng5 {[%clk 0:01:59]} 17. Nxg5 {[%clk 0:01:22]}  Qxg5 {[%clk 0:01:59]} 18. Bf1 {[%clk 0:01:22]}  Nf6 {[%clk 0:01:47]} 19. Rxd8+ {[%clk 0:01:14]}  Rxd8 {[%clk 0:01:46]} 20. Rd1 {[%clk 0:01:14]}  Ne8 {[%clk 0:01:34]} 21. Rxd8 {[%clk 0:01:12]}  Qxd8 {[%clk 0:01:34]} 22. Qd2 {[%clk 0:01:11]}  Qxd2 {[%clk 0:01:31]} 23. Bxd2 {[%clk 0:01:12]}  f6 {[%clk 0:01:28]} 24. b4 {[%clk 0:00:58]}  Kf7 {[%clk 0:01:24]} 25. Bd3 {[%clk 0:00:51]}  g6 {[%clk 0:01:23]} 26. Kf1 {[%clk 0:00:45]}  Ke6 {[%clk 0:01:20]} 27. f3 {[%clk 0:00:44]}  Nd6 {[%clk 0:01:20]} 28. e4 {[%clk 0:00:24]}  Ba6 {[%clk 0:01:16]} 29. b5 {[%clk 0:00:20]}  Bb7 {[%clk 0:01:16]} 30. a4 {[%clk 0:00:19]}  Ne8 {[%clk 0:01:12]} 31. Ke2 {[%clk 0:00:19]}  Ke7 {[%clk 0:01:12]} 32. a5 {[%clk 0:00:18]}  Nc7 {[%clk 0:01:11]} 33. Ke3 {[%clk 0:00:16]}  Ne6 {[%clk 0:01:10]} 34. a6 {[%clk 0:00:13]}  Bc8 {[%clk 0:01:05]} 35. Bc1 {[%clk 0:00:12]}  Nd4 {[%clk 0:01:01]} 36. Ba3 {[%clk 0:00:11]}  Kd6 {[%clk 0:01:01]} 37. Kd2 {[%clk 0:00:08]}  Nb3+ {[%clk 0:01:00]} 38. Ke3 {[%clk 0:00:08]}  Nd4 {[%clk 0:01:01]} 39. Kf2 {[%clk 0:00:08]}  Bd7 {[%clk 0:00:59]} 40. Ke3 {[%clk 0:00:07]}  Bc8 {[%clk 0:00:59]} 1/2-1/2


[Site "https://www.chess.com"]

[Event "Titled Tuesday Blitz November 29 Late 2022"]
[White "Araujo Sanchez, Josue"]
[Black "Quesada Perez, Yuniesky"]
[WhiteFideId "6416896"]
[BlackFideId "3504409"]
[WhiteElo "2370"]
[BlackElo "2599"]
[Result "1-0"]
[Round "02"]
[TimeControl "180+1"]
[Date "2022.11.30"]
[WhiteClock "0:00:27"]
[BlackClock "0:00:02"]

1. c4 {[%clk 0:03:00]}  c6 {[%clk 0:02:59]} 2. d4 {[%clk 0:03:00]}  d5 {[%clk 0:02:59]} 3. Nc3 {[%clk 0:03:01]}  Nf6 {[%clk 0:02:59]} 4. Nf3 {[%clk 0:03:00]}  e6 {[%clk 0:02:54]} 5. e3 {[%clk 0:03:00]}  Nbd7 {[%clk 0:02:54]} 6. Qc2 {[%clk 0:02:54]}  Bd6 {[%clk 0:02:51]} 7. b3 {[%clk 0:02:53]}  O-O {[%clk 0:02:47]} 8. Bb2 {[%clk 0:02:54]}  b6 {[%clk 0:02:35]} 9. Be2 {[%clk 0:02:54]}  Bb7 {[%clk 0:02:35]} 10. O-O {[%clk 0:02:54]}  Rc8 {[%clk 0:02:36]} 11. Rfd1 {[%clk 0:02:54]}  Qe7 {[%clk 0:02:33]} 12. e4 {[%clk 0:02:49]}  dxe4 {[%clk 0:02:32]} 13. Nxe4 {[%clk 0:02:50]}  Nxe4 {[%clk 0:02:31]} 14. Qxe4 {[%clk 0:02:50]}  f5 {[%clk 0:02:19]} 15. Qe3 {[%clk 0:01:47]}  c5 {[%clk 0:02:19]} 16. Bf1 {[%clk 0:01:41]}  Nf6 {[%clk 0:02:11]} 17. h3 {[%clk 0:01:34]}  Ne4 {[%clk 0:02:07]} 18. Bd3 {[%clk 0:01:28]}  Rcd8 {[%clk 0:01:53]} 19. Bxe4 {[%clk 0:01:22]}  Bxe4 {[%clk 0:01:51]} 20. Ne5 {[%clk 0:01:18]}  cxd4 {[%clk 0:01:37]} 21. Bxd4 {[%clk 0:01:18]}  Qc7 {[%clk 0:01:37]} 22. f4 {[%clk 0:01:13]}  Be7 {[%clk 0:01:32]} 23. Kh2 {[%clk 0:01:12]}  Bf6 {[%clk 0:01:27]} 24. Bc3 {[%clk 0:01:09]}  g5 {[%clk 0:01:22]} 25. Qg3 {[%clk 0:01:05]}  h6 {[%clk 0:01:12]} 26. h4 {[%clk 0:01:01]}  g4 {[%clk 0:01:09]} 27. Ng6 {[%clk 0:00:57]}  Rf7 {[%clk 0:00:56]} 28. Bxf6 {[%clk 0:00:56]}  Rxf6 {[%clk 0:00:57]} 29. Ne5 {[%clk 0:00:56]}  Rff8 {[%clk 0:00:47]} 30. Qe1 {[%clk 0:00:53]}  Kh7 {[%clk 0:00:44]} 31. a4 {[%clk 0:00:51]}  g3+ {[%clk 0:00:40]} 32. Kh3 {[%clk 0:00:47]}  Rg8 {[%clk 0:00:39]} 33. Rxd8 {[%clk 0:00:47]}  Rxd8 {[%clk 0:00:24]} 34. Rd1 {[%clk 0:00:46]}  Rxd1 {[%clk 0:00:16]} 35. Qxd1 {[%clk 0:00:47]}  Qb7 {[%clk 0:00:16]} 36. Qe2 {[%clk 0:00:35]}  Qg7 {[%clk 0:00:13]} 37. h5 {[%clk 0:00:34]}  Qe7 {[%clk 0:00:09]} 38. Kxg3 {[%clk 0:00:34]}  Qg7+ {[%clk 0:00:09]} 39. Kh2 {[%clk 0:00:34]}  Qe7 {[%clk 0:00:09]} 40. Qf2 {[%clk 0:00:33]}  Qd8 {[%clk 0:00:07]} 41. Qg3 {[%clk 0:00:33]}  Qf6 {[%clk 0:00:06]} 42. b4 {[%clk 0:00:28]}  Kh8 {[%clk 0:00:03]} 43. c5 {[%clk 0:00:28]}  bxc5 {[%clk 0:00:03]} 44. bxc5 {[%clk 0:00:28]}  Kh7 {[%clk 0:00:02]} 45. c6 {[%clk 0:00:27]} 1-0


[Site "https://www.chess.com"]

[Event "Titled Tuesday Blitz November 29 Late 2022"]
[White "Arkell, Keith C"]
[Black "Salem, A.R. Saleh"]
[WhiteFideId "400270"]
[BlackFideId "9301348"]
[WhiteElo "2624"]
[BlackElo "2996"]
[Result "0-1"]
[Round "02"]
[TimeControl "180+1"]
[Date "2022.11.30"]
[WhiteClock "0:00:04"]
[BlackClock "0:00:12"]

1. d4 {[%clk 0:03:00]}  Nf6 {[%clk 0:02:58]} 2. Nf3 {[%clk 0:03:01]}  g6 {[%clk 0:02:58]} 3. c4 {[%clk 0:03:01]}  Bg7 {[%clk 0:02:59]} 4. g3 {[%clk 0:03:02]}  O-O {[%clk 0:02:59]} 5. Bg2 {[%clk 0:03:02]}  d6 {[%clk 0:03:00]} 6. O-O {[%clk 0:03:02]}  Nc6 {[%clk 0:03:01]} 7. Nc3 {[%clk 0:03:02]}  e5 {[%clk 0:03:02]} 8. dxe5 {[%clk 0:03:02]}  dxe5 {[%clk 0:03:03]} 9. Bg5 {[%clk 0:03:02]}  h6 {[%clk 0:03:03]} 10. Qxd8 {[%clk 0:03:01]}  Rxd8 {[%clk 0:03:04]} 11. Bxf6 {[%clk 0:03:01]}  Bxf6 {[%clk 0:03:05]} 12. Nd5 {[%clk 0:03:02]}  Kg7 {[%clk 0:03:05]} 13. Nxc7 {[%clk 0:03:00]}  Rb8 {[%clk 0:03:05]} 14. e4 {[%clk 0:03:00]}  g5 {[%clk 0:03:05]} 15. h3 {[%clk 0:02:57]}  Be7 {[%clk 0:03:05]} 16. Nd5 {[%clk 0:02:57]}  Bc5 {[%clk 0:03:05]} 17. Rab1 {[%clk 0:02:56]}  a5 {[%clk 0:03:05]} 18. Rfd1 {[%clk 0:02:51]}  Be6 {[%clk 0:03:04]} 19. a3 {[%clk 0:02:49]}  a4 {[%clk 0:02:59]} 20. Rd3 {[%clk 0:02:40]}  f5 {[%clk 0:02:39]} 21. Ne1 {[%clk 0:02:24]}  Nd4 {[%clk 0:02:30]} 22. b4 {[%clk 0:02:14]}  axb3 {[%clk 0:02:28]} 23. Kh2 {[%clk 0:02:02]}  f4 {[%clk 0:02:13]} 24. Nf3 {[%clk 0:01:58]}  Nxf3+ {[%clk 0:02:07]} 25. Bxf3 {[%clk 0:01:58]}  Bxf2 {[%clk 0:02:05]} 26. gxf4 {[%clk 0:01:58]}  gxf4 {[%clk 0:01:45]} 27. Rdxb3 {[%clk 0:01:56]}  Rd7 {[%clk 0:01:45]} 28. Bg4 {[%clk 0:01:53]}  Kf7 {[%clk 0:01:32]} 29. Kg2 {[%clk 0:01:45]}  Bd4 {[%clk 0:01:29]} 30. Kf3 {[%clk 0:01:44]}  b6 {[%clk 0:01:07]} 31. a4 {[%clk 0:01:37]}  Ra7 {[%clk 0:01:02]} 32. Nxb6 {[%clk 0:01:35]}  Bxg4+ {[%clk 0:00:50]} 33. Kxg4 {[%clk 0:01:27]}  Rg8+ {[%clk 0:00:32]} 34. Kh5 {[%clk 0:01:18]}  Ra6 {[%clk 0:00:21]} 35. h4 {[%clk 0:01:09]}  Rg3 {[%clk 0:00:17]} 36. Nd5 {[%clk 0:00:58]}  Rxb3 {[%clk 0:00:17]} 37. Rxb3 {[%clk 0:00:58]}  Rxa4 {[%clk 0:00:18]} 38. Rb7+ {[%clk 0:00:58]}  Ke6 {[%clk 0:00:18]} 39. Nc7+ {[%clk 0:00:45]}  Kd6 {[%clk 0:00:15]} 40. Nb5+ {[%clk 0:00:44]}  Kc5 {[%clk 0:00:13]} 41. Rc7+ {[%clk 0:00:43]}  Kb4 {[%clk 0:00:13]} 42. Nd6 {[%clk 0:00:41]}  f3 {[%clk 0:00:12]} 43. Rf7 {[%clk 0:00:41]}  f2 {[%clk 0:00:12]} 44. Nb5 {[%clk 0:00:27]}  Bc5 {[%clk 0:00:11]} 45. Kxh6 {[%clk 0:00:06]}  Ra1 {[%clk 0:00:12]} 46. h5 {[%clk 0:00:04]}  f1=Q {[%clk 0:00:12]} 47. Rxf1 {[%clk 0:00:05]}  Rxf1 {[%clk 0:00:12]} 48. Kg6 {[%clk 0:00:05]}  Kxc4 {[%clk 0:00:12]} 49. Nc7 {[%clk 0:00:05]}  Be3 {[%clk 0:00:11]} 50. Nd5 {[%clk 0:00:04]}  Kd4 {[%clk 0:00:11]} 51. Nxe3 {[%clk 0:00:04]}  Kxe3 {[%clk 0:00:12]} 0-1


[Site "https://www.chess.com"]

[Event "Titled Tuesday Blitz November 29 Late 2022"]
[White "Arngrimsson, Dagur"]
[Black "Radovanovic, Dusan"]
[WhiteFideId "2301288"]
[BlackFideId "926868"]
[WhiteElo "2286"]
[BlackElo "2341"]
[Result "0-1"]
[Round "02"]
[TimeControl "180+1"]
[Date "2022.11.30"]
[WhiteClock "0:01:05"]
[BlackClock "0:01:31"]

1. e4 {[%clk 0:03:00]}  c5 {[%clk 0:02:59]} 2. Nf3 {[%clk 0:03:00]}  d6 {[%clk 0:03:00]} 3. d4 {[%clk 0:03:00]}  cxd4 {[%clk 0:03:01]} 4. Nxd4 {[%clk 0:03:01]}  Nf6 {[%clk 0:03:01]} 5. Nc3 {[%clk 0:03:01]}  g6 {[%clk 0:03:02]} 6. Be3 {[%clk 0:03:00]}  Bg7 {[%clk 0:03:02]} 7. f3 {[%clk 0:03:00]}  O-O {[%clk 0:03:03]} 8. Qd2 {[%clk 0:03:01]}  Nc6 {[%clk 0:03:04]} 9. Bc4 {[%clk 0:03:01]}  Bd7 {[%clk 0:03:04]} 10. O-O-O {[%clk 0:03:00]}  Rb8 {[%clk 0:03:03]} 11. Bb3 {[%clk 0:02:57]}  Na5 {[%clk 0:03:02]} 12. g4 {[%clk 0:02:55]}  b5 {[%clk 0:03:00]} 13. h4 {[%clk 0:02:52]}  Nc4 {[%clk 0:02:59]} 14. Bxc4 {[%clk 0:02:47]}  bxc4 {[%clk 0:02:59]} 15. Rdg1 {[%clk 0:02:46]}  Qb6 {[%clk 0:02:40]} 16. Nd1 {[%clk 0:02:38]}  c3 {[%clk 0:02:36]} 17. Qxc3 {[%clk 0:02:32]}  Rfc8 {[%clk 0:02:35]} 18. Qd3 {[%clk 0:02:20]}  Qa5 {[%clk 0:02:33]} 19. a3 {[%clk 0:02:14]}  Ba4 {[%clk 0:02:24]} 20. Nc3 {[%clk 0:02:13]}  Nd7 {[%clk 0:02:16]} 21. h5 {[%clk 0:01:56]}  Ne5 {[%clk 0:02:14]} 22. Qe2 {[%clk 0:01:40]}  Rxb2 {[%clk 0:01:59]} 23. hxg6 {[%clk 0:01:23]}  Qxc3 {[%clk 0:01:49]} 24. gxh7+ {[%clk 0:01:21]}  Kh8 {[%clk 0:01:47]} 25. Bh6 {[%clk 0:01:08]}  Bxh6+ {[%clk 0:01:40]} 26. Rxh6 {[%clk 0:01:05]}  Bxc2 {[%clk 0:01:31]} 0-1


[Site "https://www.chess.com"]

[Event "Titled Tuesday Blitz November 29 Late 2022"]
[White "Atanasov, Anthony"]
[Black "Pranav, V"]
[WhiteFideId "2623897"]
[BlackFideId "25060783"]
[WhiteElo "2048"]
[BlackElo "2430"]
[Result "0-1"]
[Round "02"]
[TimeControl "180+1"]
[Date "2022.11.30"]
[WhiteClock "0:00:03"]
[BlackClock "0:01:00"]

1. d4 {[%clk 0:02:52]}  Nf6 {[%clk 0:02:59]} 2. Nf3 {[%clk 0:02:52]}  c5 {[%clk 0:02:57]} 3. d5 {[%clk 0:02:52]}  g6 {[%clk 0:02:56]} 4. Nc3 {[%clk 0:02:51]}  Bg7 {[%clk 0:02:56]} 5. e4 {[%clk 0:02:51]}  d6 {[%clk 0:02:57]} 6. h3 {[%clk 0:02:51]}  O-O {[%clk 0:02:53]} 7. a4 {[%clk 0:02:51]}  a6 {[%clk 0:02:53]} 8. Be2 {[%clk 0:02:50]}  Nbd7 {[%clk 0:02:52]} 9. O-O {[%clk 0:02:49]}  Rb8 {[%clk 0:02:53]} 10. Bf4 {[%clk 0:02:47]}  Nh5 {[%clk 0:02:49]} 11. Be3 {[%clk 0:02:42]}  b5 {[%clk 0:02:49]} 12. axb5 {[%clk 0:02:41]}  axb5 {[%clk 0:02:49]} 13. Nxb5 {[%clk 0:02:42]}  Bxb2 {[%clk 0:02:47]} 14. Na7 {[%clk 0:02:41]}  Bb7 {[%clk 0:02:38]} 15. Rb1 {[%clk 0:02:40]}  Bf6 {[%clk 0:02:38]} 16. g4 {[%clk 0:02:36]}  Ng7 {[%clk 0:02:36]} 17. Nc6 {[%clk 0:02:21]}  Bxc6 {[%clk 0:02:33]} 18. dxc6 {[%clk 0:02:22]}  Ne5 {[%clk 0:02:22]} 19. Nxe5 {[%clk 0:01:58]}  Bxe5 {[%clk 0:02:23]} 20. f4 {[%clk 0:01:58]}  Bc3 {[%clk 0:02:18]} 21. Qd3 {[%clk 0:01:55]}  Ba5 {[%clk 0:02:17]} 22. Qd5 {[%clk 0:01:26]}  Rc8 {[%clk 0:02:12]} 23. Bf3 {[%clk 0:01:19]}  e6 {[%clk 0:02:10]} 24. Qa2 {[%clk 0:01:15]}  Rxc6 {[%clk 0:02:09]} 25. Rfd1 {[%clk 0:01:08]}  Qc7 {[%clk 0:02:05]} 26. Rb5 {[%clk 0:01:02]}  Bc3 {[%clk 0:02:05]} 27. Qb3 {[%clk 0:00:59]}  Bd4 {[%clk 0:02:05]} 28. Rb7 {[%clk 0:00:54]}  Bxe3+ {[%clk 0:02:03]} 29. Kg2 {[%clk 0:00:50]}  Qc8 {[%clk 0:02:03]} 30. e5 {[%clk 0:00:50]}  d5 {[%clk 0:02:01]} 31. c4 {[%clk 0:00:42]}  d4 {[%clk 0:01:55]} 32. Rb1 {[%clk 0:00:17]}  Rc7 {[%clk 0:01:29]} 33. Rb8 {[%clk 0:00:17]}  Qd7 {[%clk 0:01:29]} 34. Rxf8+ {[%clk 0:00:17]}  Kxf8 {[%clk 0:01:30]} 35. Qb8+ {[%clk 0:00:13]}  Ne8 {[%clk 0:01:28]} 36. Kg3 {[%clk 0:00:09]}  Rc8 {[%clk 0:01:24]} 37. Qb6 {[%clk 0:00:06]}  Qe7 {[%clk 0:01:24]} 38. g5 {[%clk 0:00:05]}  h5 {[%clk 0:01:22]} 39. h4 {[%clk 0:00:05]}  d3 {[%clk 0:01:15]} 40. Rd1 {[%clk 0:00:04]}  d2 {[%clk 0:01:15]} 41. Be4 {[%clk 0:00:04]}  Qd7 {[%clk 0:01:04]} 42. Kf3 {[%clk 0:00:04]}  Qd4 {[%clk 0:01:00]} 43. Qb7 {[%clk 0:00:04]}  Rd8 {[%clk 0:00:59]} 44. Qb3 {[%clk 0:00:04]}  Bg1 {[%clk 0:00:59]} 45. Kg2 {[%clk 0:00:03]}  Qf2+ {[%clk 0:00:59]} 46. Kh1 {[%clk 0:00:03]}  Qh2# {[%clk 0:01:00]} 0-1


[Site "https://www.chess.com"]

[Event "Titled Tuesday Blitz November 29 Late 2022"]
[White "Bazzano, Sebastian"]
[Black "Rubio Tent, Francisco"]
[WhiteFideId "104566"]
[BlackFideId "2238233"]
[WhiteElo "2190"]
[BlackElo "2211"]
[Result "0-1"]
[Round "02"]
[TimeControl "180+1"]
[Date "2022.11.30"]
[WhiteClock "0:00:09"]
[BlackClock "0:01:19"]

1. d4 {[%clk 0:03:00]}  d5 {[%clk 0:02:59]} 2. Bf4 {[%clk 0:03:00]}  Nf6 {[%clk 0:02:59]} 3. e3 {[%clk 0:02:59]}  c5 {[%clk 0:03:00]} 4. c3 {[%clk 0:02:59]}  Nc6 {[%clk 0:02:59]} 5. Nd2 {[%clk 0:02:58]}  Bf5 {[%clk 0:02:56]} 6. Qb3 {[%clk 0:02:57]}  Qc8 {[%clk 0:02:56]} 7. Ngf3 {[%clk 0:02:57]}  e6 {[%clk 0:02:56]} 8. h3 {[%clk 0:02:53]}  c4 {[%clk 0:02:55]} 9. Qd1 {[%clk 0:02:52]}  h6 {[%clk 0:02:56]} 10. Be2 {[%clk 0:02:51]}  Be7 {[%clk 0:02:54]} 11. O-O {[%clk 0:02:50]}  O-O {[%clk 0:02:53]} 12. Ne5 {[%clk 0:02:36]}  Nxe5 {[%clk 0:02:46]} 13. Bxe5 {[%clk 0:02:36]}  Bh7 {[%clk 0:02:34]} 14. Re1 {[%clk 0:02:33]}  b5 {[%clk 0:02:30]} 15. Bf3 {[%clk 0:02:32]}  Nd7 {[%clk 0:02:24]} 16. Bg3 {[%clk 0:02:21]}  f5 {[%clk 0:02:18]} 17. Be2 {[%clk 0:01:42]}  b4 {[%clk 0:02:18]} 18. Nf3 {[%clk 0:01:41]}  a5 {[%clk 0:02:15]} 19. Ne5 {[%clk 0:01:30]}  Nxe5 {[%clk 0:02:13]} 20. Bxe5 {[%clk 0:01:28]}  Qc6 {[%clk 0:02:07]} 21. f4 {[%clk 0:01:01]}  a4 {[%clk 0:01:55]} 22. cxb4 {[%clk 0:00:43]}  Bxb4 {[%clk 0:01:56]} 23. Rf1 {[%clk 0:00:43]}  a3 {[%clk 0:01:51]} 24. bxa3 {[%clk 0:00:40]}  Rxa3 {[%clk 0:01:47]} 25. Rf3 {[%clk 0:00:35]}  Rfa8 {[%clk 0:01:43]} 26. Rg3 {[%clk 0:00:33]}  Bf8 {[%clk 0:01:43]} 27. Bh5 {[%clk 0:00:31]}  c3 {[%clk 0:01:30]} 28. Bg6 {[%clk 0:00:26]}  c2 {[%clk 0:01:26]} 29. Bxh7+ {[%clk 0:00:20]}  Kxh7 {[%clk 0:01:27]} 30. Qh5 {[%clk 0:00:09]}  Qe8 {[%clk 0:01:19]} 0-1


[Site "https://www.chess.com"]

[Event "Titled Tuesday Blitz November 29 Late 2022"]
[White "Bluebaum, Matthias"]
[Black "Abrahamyan, Tatev"]
[WhiteFideId "24651516"]
[BlackFideId "13301918"]
[WhiteElo "2633"]
[BlackElo "2347"]
[Result "1-0"]
[Round "02"]
[TimeControl "180+1"]
[Date "2022.11.30"]
[WhiteClock "0:01:46"]
[BlackClock "0:00:16"]

1. d4 {[%clk 0:03:00]}  Nf6 {[%clk 0:02:58]} 2. c4 {[%clk 0:03:01]}  e6 {[%clk 0:02:54]} 3. Nc3 {[%clk 0:03:01]}  Bb4 {[%clk 0:02:53]} 4. e3 {[%clk 0:03:02]}  O-O {[%clk 0:02:52]} 5. Bd2 {[%clk 0:03:02]}  c5 {[%clk 0:02:51]} 6. a3 {[%clk 0:03:01]}  Bxc3 {[%clk 0:02:50]} 7. Bxc3 {[%clk 0:03:02]}  Ne4 {[%clk 0:02:49]} 8. Ne2 {[%clk 0:03:02]}  b6 {[%clk 0:02:48]} 9. d5 {[%clk 0:03:03]}  Bb7 {[%clk 0:02:45]} 10. f3 {[%clk 0:03:02]}  Nxc3 {[%clk 0:02:42]} 11. Nxc3 {[%clk 0:03:03]}  exd5 {[%clk 0:02:33]} 12. cxd5 {[%clk 0:03:04]}  d6 {[%clk 0:02:33]} 13. e4 {[%clk 0:03:05]}  a6 {[%clk 0:02:33]} 14. a4 {[%clk 0:03:04]}  Nd7 {[%clk 0:02:32]} 15. Be2 {[%clk 0:03:05]}  Re8 {[%clk 0:02:31]} 16. O-O {[%clk 0:03:05]}  Nf6 {[%clk 0:02:26]} 17. Bc4 {[%clk 0:02:56]}  Qe7 {[%clk 0:02:07]} 18. Qd3 {[%clk 0:02:55]}  Qe5 {[%clk 0:01:52]} 19. Rad1 {[%clk 0:02:52]}  Nh5 {[%clk 0:01:45]} 20. f4 {[%clk 0:02:39]}  Nxf4 {[%clk 0:01:06]} 21. Qf3 {[%clk 0:02:39]}  g5 {[%clk 0:01:07]} 22. g3 {[%clk 0:02:39]}  Nh3+ {[%clk 0:01:06]} 23. Kg2 {[%clk 0:02:40]}  Bc8 {[%clk 0:01:04]} 24. Qxf7+ {[%clk 0:02:40]}  Kh8 {[%clk 0:01:05]} 25. Qf6+ {[%clk 0:02:40]}  Qxf6 {[%clk 0:00:54]} 26. Rxf6 {[%clk 0:02:40]}  Rd8 {[%clk 0:00:54]} 27. Rdf1 {[%clk 0:02:23]}  Kg8 {[%clk 0:00:53]} 28. e5 {[%clk 0:02:17]}  Ra7 {[%clk 0:00:36]} 29. e6 {[%clk 0:02:10]}  g4 {[%clk 0:00:35]} 30. Ne4 {[%clk 0:02:11]}  Re7 {[%clk 0:00:30]} 31. R1f5 {[%clk 0:02:06]}  Bb7 {[%clk 0:00:28]} 32. Rh6 {[%clk 0:01:50]}  Rg7 {[%clk 0:00:16]} 33. Nf6+ {[%clk 0:01:46]}  Kh8 {[%clk 0:00:16]} 34. Rfh5 {[%clk 0:01:46]} 1-0


[Site "https://www.chess.com"]